[Event "Late-Titled-Tuesday-Blitz-April-30-2024"]
[Site "Chess.com"]
[Date "2024.04.30"]
[Round "11"]
[White "TheAlienParty"]
[Black "imdvb6307"]
[Result "0-1"]
[WhiteElo "2424"]
[BlackElo "2535"]
[TimeControl "180+1"]
[EndTime "16:04:31 PDT"]
[Termination "imdvb6307 won by checkmate"]

1. c4 {[%clk 0:02:59.7]} 1... Nf6 {[%clk 0:02:56.3]} 2. Nc3 {[%clk 0:02:59]}
2... c6 {[%clk 0:02:56.4]} 3. e4 {[%clk 0:02:57.8]} 3... d5 {[%clk 0:02:56.6]}
4. e5 {[%clk 0:02:56.7]} 4... d4 {[%clk 0:02:57]} 5. exf6 {[%clk 0:02:56.2]}
5... dxc3 {[%clk 0:02:57.1]} 6. bxc3 {[%clk 0:02:55]} 6... exf6 {[%clk
0:02:57.2]} 7. d4 {[%clk 0:02:54.9]} 7... c5 {[%clk 0:02:55]} 8. Nf3 {[%clk
0:02:54.4]} 8... Nc6 {[%clk 0:02:54]} 9. Be3 {[%clk 0:02:52.1]} 9... cxd4 {[%clk
0:02:20.1]} 10. cxd4 {[%clk 0:02:51.6]} 10... Bb4+ {[%clk 0:02:20.2]} 11. Bd2
{[%clk 0:02:51.2]} 11... Bxd2+ {[%clk 0:02:20.2]} 12. Qxd2 {[%clk 0:02:50.9]}
12... Bg4 {[%clk 0:02:20.8]} 13. Qe3+ {[%clk 0:02:43.1]} 13... Qe7 {[%clk
0:02:20.5]} 14. O-O-O {[%clk 0:02:38.2]} 14... O-O-O {[%clk 0:02:09]} 15. Qxe7
{[%clk 0:02:34.5]} 15... Nxe7 {[%clk 0:02:09.1]} 16. Be2 {[%clk 0:02:33.2]}
16... Nf5 {[%clk 0:01:37.3]} 17. d5 {[%clk 0:02:30.3]} 17... b6 {[%clk 0:01:35]}
18. h3 {[%clk 0:02:22.6]} 18... Bxf3 {[%clk 0:01:34.6]} 19. Bxf3 {[%clk
0:02:22.4]} 19... Nd6 {[%clk 0:01:35.2]} 20. Kb1 {[%clk 0:02:18.7]} 20... Kd7
{[%clk 0:01:27.3]} 21. Rd4 {[%clk 0:02:15.5]} 21... Rc8 {[%clk 0:01:26.8]} 22.
Rc1 {[%clk 0:02:14.4]} 22... Rc5 {[%clk 0:01:26]} 23. Be2 {[%clk 0:02:07]} 23...
Rhc8 {[%clk 0:01:23.8]} 24. a4 {[%clk 0:02:03.6]} 24... Re8 {[%clk 0:01:07]} 25.
Bd3 {[%clk 0:02:00.5]} 25... Ra5 {[%clk 0:00:59.8]} 26. Bc2 {[%clk 0:01:59]}
26... Re2 {[%clk 0:00:55.9]} 27. Rf4 {[%clk 0:01:56.9]} 27... h6 {[%clk
0:00:25.9]} 28. Rg4 {[%clk 0:01:46.9]} 28... g5 {[%clk 0:00:25.2]} 29. f4 {[%clk
0:01:44.6]} 29... Nxc4 {[%clk 0:00:19.2]} 30. fxg5 {[%clk 0:01:44.2]} 30... Na3+
{[%clk 0:00:19.5]} 31. Kb2 {[%clk 0:01:43.7]} 31... Nxc2 {[%clk 0:00:19.7]} 32.
Rxc2 {[%clk 0:01:43.5]} 32... Rxc2+ {[%clk 0:00:18.9]} 33. Kxc2 {[%clk
0:01:43.7]} 33... fxg5 {[%clk 0:00:18.3]} 34. Rd4 {[%clk 0:01:42.8]} 34... Kd6
{[%clk 0:00:18.3]} 35. Rd2 {[%clk 0:01:41.9]} 35... Rxd5 {[%clk 0:00:18.3]} 36.
Rf2 {[%clk 0:01:42.3]} 36... f5 {[%clk 0:00:18.6]} 37. Kc3 {[%clk 0:01:42.2]}
37... Kc5 {[%clk 0:00:17.2]} 38. Re2 {[%clk 0:01:41.9]} 38... f4 {[%clk
0:00:16.3]} 39. Re7 {[%clk 0:01:41.7]} 39... a5 {[%clk 0:00:15.6]} 40. Rc7+
{[%clk 0:01:41.6]} 40... Kd6 {[%clk 0:00:15.9]} 41. Rb7 {[%clk 0:01:41.6]} 41...
Kc6 {[%clk 0:00:14.3]} 42. Rh7 {[%clk 0:01:41.5]} 42... Rd6 {[%clk 0:00:14.7]}
43. Kc4 {[%clk 0:01:41.3]} 43... Rf6 {[%clk 0:00:14.4]} 44. Rg7 {[%clk
0:01:40.1]} 44... Kd6 {[%clk 0:00:12.3]} 45. Rb7 {[%clk 0:01:39.5]} 45... Ke5
{[%clk 0:00:12.4]} 46. Re7+ {[%clk 0:01:39]} 46... Kf5 {[%clk 0:00:12.8]} 47.
Kb5 {[%clk 0:01:37.5]} 47... Kg6 {[%clk 0:00:10.3]} 48. Rb7 {[%clk 0:01:37.1]}
48... h5 {[%clk 0:00:09.5]} 49. Rb8 {[%clk 0:01:34.3]} 49... g4 {[%clk
0:00:09.5]} 50. Rg8+ {[%clk 0:01:33.9]} 50... Kf5 {[%clk 0:00:09.5]} 51. Rc8
{[%clk 0:01:24.9]} 51... f3 {[%clk 0:00:08.4]} 52. hxg4+ {[%clk 0:01:23.4]}
52... hxg4 {[%clk 0:00:07.8]} 53. gxf3 {[%clk 0:01:23.5]} 53... gxf3 {[%clk
0:00:08]} 54. Rc2 {[%clk 0:01:21]} 54... Kf4 {[%clk 0:00:08.2]} 55. Rc1 {[%clk
0:01:18.5]} 55... Kg3 {[%clk 0:00:08.1]} 56. Rg1+ {[%clk 0:01:18.2]} 56... Kh2
{[%clk 0:00:08.1]} 57. Rg8 {[%clk 0:01:15.3]} 57... f2 {[%clk 0:00:08.1]} 58.
Rh8+ {[%clk 0:01:15.5]} 58... Kg1 {[%clk 0:00:08.4]} 59. Rg8+ {[%clk 0:01:15.7]}
59... Kh2 {[%clk 0:00:08.6]} 60. Rh8+ {[%clk 0:01:15.5]} 60... Kg2 {[%clk
0:00:09]} 61. Rg8+ {[%clk 0:01:15.5]} 61... Kf3 {[%clk 0:00:09.5]} 62. Ka6
{[%clk 0:01:12.7]} 62... f1=Q+ {[%clk 0:00:09.3]} 63. Ka7 {[%clk 0:01:13]} 63...
Rf7+ {[%clk 0:00:09.8]} 64. Ka8 {[%clk 0:01:13.1]} 64... Qa6+ {[%clk 0:00:09.5]}
65. Kb8 {[%clk 0:01:14]} 65... Qb7# {[%clk 0:00:09.9]} 0-1

[Event "Late-Titled-Tuesday-Blitz-April-30-2024"]
[Site "Chess.com"]
[Date "2024.04.30"]
[Round "11"]
[White "StelaSfw"]
[Black "Bala-Afiada"]
[Result "0-1"]
[WhiteElo "1662"]
[BlackElo "2004"]
[TimeControl "180+1"]
[EndTime "16:04:36 PDT"]
[Termination "Bala-Afiada won on time"]

1. e4 {[%clk 0:02:59.4]} 1... c5 {[%clk 0:02:53.3]} 2. Nf3 {[%clk 0:02:59.2]}
2... Nc6 {[%clk 0:02:51.2]} 3. d4 {[%clk 0:02:59.2]} 3... cxd4 {[%clk
0:02:51.1]} 4. Nxd4 {[%clk 0:02:59.8]} 4... Nf6 {[%clk 0:02:51.7]} 5. Nc3 {[%clk
0:02:58.3]} 5... d6 {[%clk 0:02:52]} 6. f3 {[%clk 0:02:55.9]} 6... e6 {[%clk
0:02:49.3]} 7. Be3 {[%clk 0:02:55.9]} 7... Be7 {[%clk 0:02:49.9]} 8. Qd2 {[%clk
0:02:55.7]} 8... O-O {[%clk 0:02:49.3]} 9. O-O-O {[%clk 0:02:56]} 9... d5 {[%clk
0:02:49.1]} 10. Nxc6 {[%clk 0:02:42.1]} 10... bxc6 {[%clk 0:02:47.6]} 11. e5
{[%clk 0:02:40.3]} 11... Nd7 {[%clk 0:02:47.6]} 12. f4 {[%clk 0:02:35.1]} 12...
c5 {[%clk 0:02:47.9]} 13. Bf2 {[%clk 0:02:28.8]} 13... Qa5 {[%clk 0:02:42.6]}
14. a3 {[%clk 0:02:25.9]} 14... Rb8 {[%clk 0:02:32.3]} 15. Nb1 {[%clk
0:02:17.1]} 15... Qb6 {[%clk 0:02:23.2]} 16. c3 {[%clk 0:02:11.8]} 16... Bb7
{[%clk 0:02:00.3]} 17. Qc2 {[%clk 0:02:05.9]} 17... Rfc8 {[%clk 0:01:46]} 18.
Bd3 {[%clk 0:02:05.7]} 18... g6 {[%clk 0:01:39.1]} 19. g4 {[%clk 0:01:59.8]}
19... d4 {[%clk 0:01:31.7]} 20. Rhg1 {[%clk 0:01:53.9]} 20... Bf3 {[%clk
0:01:14.9]} 21. Rde1 {[%clk 0:01:45.2]} 21... c4 {[%clk 0:01:08.2]} 22. Bf1
{[%clk 0:01:28.4]} 22... d3 {[%clk 0:00:57.5]} 23. Bxb6 {[%clk 0:01:27.2]} 23...
dxc2 {[%clk 0:00:57.5]} 24. Bxa7 {[%clk 0:01:23.1]} 24... cxb1=Q+ {[%clk
0:00:57]} 25. Kxb1 {[%clk 0:01:21.8]} 25... Rb7 {[%clk 0:00:52.8]} 26. Be3
{[%clk 0:01:13.2]} 26... Bxa3 {[%clk 0:00:49.9]} 27. Bc1 {[%clk 0:01:11.7]}
27... Rcb8 {[%clk 0:00:43.7]} 28. b4 {[%clk 0:01:00.6]} 28... Bxc1 {[%clk
0:00:34.2]} 29. Kxc1 {[%clk 0:01:00.2]} 29... Nb6 {[%clk 0:00:30.4]} 30. Bg2
{[%clk 0:00:50.3]} 30... Bxg2 {[%clk 0:00:30.3]} 31. Rxg2 {[%clk 0:00:50.3]}
31... Nd5 {[%clk 0:00:30.9]} 32. f5 {[%clk 0:00:39.7]} 32... Nf4 {[%clk
0:00:24.5]} 33. Rf2 {[%clk 0:00:34]} 33... Nd3+ {[%clk 0:00:24.2]} 34. Kd2
{[%clk 0:00:31.8]} 34... Nxf2 {[%clk 0:00:23.3]} 35. Rg1 {[%clk 0:00:17.7]}
35... exf5 {[%clk 0:00:20.4]} 36. gxf5 {[%clk 0:00:17.9]} 36... Rd8+ {[%clk
0:00:19.9]} 37. Ke3 {[%clk 0:00:17.3]} 37... Nd3 {[%clk 0:00:16.7]} 0-1

[Event "Late-Titled-Tuesday-Blitz-April-30-2024"]
[Site "Chess.com"]
[Date "2024.04.30"]
[Round "11"]
[White "Romadk"]
[Black "Walter_White_Poland"]
[Result "0-1"]
[WhiteElo "2473"]
[BlackElo "2380"]
[TimeControl "180+1"]
[EndTime "16:04:38 PDT"]
[Termination "Walter_White_Poland won by checkmate"]

1. d4 {[%clk 0:03:00.9]} 1... d5 {[%clk 0:02:56.8]} 2. Nf3 {[%clk 0:03:00.8]}
2... Nf6 {[%clk 0:02:54]} 3. g3 {[%clk 0:03:01.1]} 3... e6 {[%clk 0:02:52.7]} 4.
Bg2 {[%clk 0:03:01.5]} 4... Be7 {[%clk 0:02:53.3]} 5. c4 {[%clk 0:03:00.8]} 5...
O-O {[%clk 0:02:53.3]} 6. Nc3 {[%clk 0:03:01.4]} 6... c6 {[%clk 0:02:53.2]} 7.
O-O {[%clk 0:03:00.7]} 7... dxc4 {[%clk 0:02:52.9]} 8. Ne5 {[%clk 0:02:59.4]}
8... b5 {[%clk 0:02:51.1]} 9. Nxb5 {[%clk 0:02:57.1]} 9... Ba6 {[%clk
0:02:47.6]} 10. Nc3 {[%clk 0:02:49.4]} 10... Qc7 {[%clk 0:02:46.7]} 11. Qa4
{[%clk 0:02:47.2]} 11... Nd5 {[%clk 0:02:37.4]} 12. Nxc4 {[%clk 0:02:40.4]}
12... Bxc4 {[%clk 0:02:34.7]} 13. Qxc4 {[%clk 0:02:41.3]} 13... Nd7 {[%clk
0:02:34.2]} 14. Nxd5 {[%clk 0:02:33.4]} 14... exd5 {[%clk 0:02:32.1]} 15. Bxd5
{[%clk 0:02:29.7]} 15... Nb6 {[%clk 0:02:26.7]} 16. Qxc6 {[%clk 0:02:28.5]}
16... Nxd5 {[%clk 0:02:26.5]} 17. Qxd5 {[%clk 0:02:28.4]} 17... Rfd8 {[%clk
0:02:26]} 18. Qe4 {[%clk 0:02:24.6]} 18... Re8 {[%clk 0:02:24.9]} 19. Bf4 {[%clk
0:02:20.1]} 19... Qb6 {[%clk 0:02:23.6]} 20. e3 {[%clk 0:01:52.4]} 20... g5
{[%clk 0:02:14.9]} 21. Be5 {[%clk 0:01:46.2]} 21... f6 {[%clk 0:02:14.1]} 22.
Qd5+ {[%clk 0:01:36.9]} 22... Kg7 {[%clk 0:02:13.1]} 23. Rac1 {[%clk 0:01:03.2]}
23... Rad8 {[%clk 0:02:12.5]} 24. Bxf6+ {[%clk 0:00:36.2]} 24... Bxf6 {[%clk
0:02:12.2]} 25. Qf5 {[%clk 0:00:36.1]} 25... Re7 {[%clk 0:01:46.3]} 26. b3
{[%clk 0:00:36.2]} 26... Rdd7 {[%clk 0:01:34.8]} 27. Rc5 {[%clk 0:00:35.7]}
27... Qe6 {[%clk 0:01:31.9]} 28. Qxe6 {[%clk 0:00:29.5]} 28... Rxe6 {[%clk
0:01:32.8]} 29. Rfc1 {[%clk 0:00:29.1]} 29... Kg6 {[%clk 0:01:29.3]} 30. h3
{[%clk 0:00:26.9]} 30... h5 {[%clk 0:01:27.2]} 31. Kg2 {[%clk 0:00:26.7]} 31...
Ra6 {[%clk 0:01:26.4]} 32. a4 {[%clk 0:00:26.3]} 32... Rb7 {[%clk 0:01:25.6]}
33. R1c3 {[%clk 0:00:25.4]} 33... Rab6 {[%clk 0:01:25.4]} 34. Rb5 {[%clk
0:00:12.8]} 34... Rxb5 {[%clk 0:01:24.8]} 35. axb5 {[%clk 0:00:13.7]} 35... Rxb5
{[%clk 0:01:24.6]} 36. Rc7 {[%clk 0:00:14.3]} 36... a5 {[%clk 0:01:18.4]} 37.
Ra7 {[%clk 0:00:14.1]} 37... Bd8 {[%clk 0:01:17]} 38. Ra6+ {[%clk 0:00:13.8]}
38... Bb6 {[%clk 0:01:16.5]} 39. d5 {[%clk 0:00:13.3]} 39... Rxb3 {[%clk
0:01:16.1]} 40. d6 {[%clk 0:00:13.9]} 40... Kf6 {[%clk 0:01:15]} 41. d7 {[%clk
0:00:13.3]} 41... Ke7 {[%clk 0:01:15]} 42. Kf3 {[%clk 0:00:09]} 42... Kxd7
{[%clk 0:01:11.6]} 43. Ke4 {[%clk 0:00:08.7]} 43... Kc6 {[%clk 0:01:08.7]} 44.
Ra8 {[%clk 0:00:08.9]} 44... Rb4+ {[%clk 0:01:01.6]} 45. Kf5 {[%clk 0:00:09.2]}
45... Rb5+ {[%clk 0:01:01]} 46. Kg6 {[%clk 0:00:09]} 46... g4 {[%clk 0:00:59.9]}
47. hxg4 {[%clk 0:00:06.7]} 47... hxg4 {[%clk 0:01:00.8]} 48. Rc8+ {[%clk
0:00:04.6]} 48... Kb7 {[%clk 0:01:00]} 49. Re8 {[%clk 0:00:02.9]} 49... a4
{[%clk 0:00:59.4]} 50. Re4 {[%clk 0:00:03.3]} 50... Ra5 {[%clk 0:00:59.4]} 51.
Rxg4 {[%clk 0:00:03.5]} 51... a3 {[%clk 0:00:59.8]} 52. Rb4 {[%clk 0:00:01.5]}
52... a2 {[%clk 0:00:59.2]} 53. Rb1 {[%clk 0:00:01.8]} 53... axb1=Q+ {[%clk
0:00:58.9]} 54. Kh6 {[%clk 0:00:01]} 54... Qh1+ {[%clk 0:00:57]} 55. Kg6 {[%clk
0:00:01.9]} 55... Qf3 {[%clk 0:00:54.8]} 56. Kg7 {[%clk 0:00:02.8]} 56... Qxf2
{[%clk 0:00:54.1]} 57. Kh7 {[%clk 0:00:02.5]} 57... Qxg3 {[%clk 0:00:52.8]} 58.
Kh8 {[%clk 0:00:03.4]} 58... Rh5# {[%clk 0:00:51.9]} 0-1

[Event "Late-Titled-Tuesday-Blitz-April-30-2024"]
[Site "Chess.com"]
[Date "2024.04.30"]
[Round "11"]
[White "DeTimmerman"]
[Black "karinachess1"]
[Result "1/2-1/2"]
[WhiteElo "2776"]
[BlackElo "2610"]
[TimeControl "180+1"]
[EndTime "16:04:39 PDT"]
[Termination "Game drawn by repetition"]

1. b4 {[%clk 0:03:00.9]} 1... e5 {[%clk 0:02:59.4]} 2. Bb2 {[%clk 0:02:59.8]}
2... Bxb4 {[%clk 0:02:59.6]} 3. Bxe5 {[%clk 0:02:59.6]} 3... Nf6 {[%clk
0:03:00]} 4. Nc3 {[%clk 0:02:59.6]} 4... c6 {[%clk 0:02:41.1]} 5. a3 {[%clk
0:02:59.1]} 5... Be7 {[%clk 0:02:40.9]} 6. e3 {[%clk 0:02:58.9]} 6... d5 {[%clk
0:02:40.8]} 7. Nf3 {[%clk 0:02:58.6]} 7... Nbd7 {[%clk 0:02:37.9]} 8. Bg3 {[%clk
0:02:57.6]} 8... Nc5 {[%clk 0:02:32.4]} 9. Bd3 {[%clk 0:02:52]} 9... Nxd3+
{[%clk 0:02:23.4]} 10. cxd3 {[%clk 0:02:52.9]} 10... O-O {[%clk 0:02:23.3]} 11.
O-O {[%clk 0:02:52.6]} 11... Bf5 {[%clk 0:02:15]} 12. d4 {[%clk 0:02:52.9]}
12... Qa5 {[%clk 0:02:04.4]} 13. Qb3 {[%clk 0:02:40.8]} 13... b6 {[%clk
0:01:43.8]} 14. Rfc1 {[%clk 0:02:35.7]} 14... Rfc8 {[%clk 0:01:42.8]} 15. h3
{[%clk 0:02:35.2]} 15... h6 {[%clk 0:01:38.6]} 16. Bh4 {[%clk 0:02:30.2]} 16...
Be6 {[%clk 0:01:37.2]} 17. Ne2 {[%clk 0:02:19.5]} 17... c5 {[%clk 0:01:22.7]}
18. dxc5 {[%clk 0:02:09.4]} 18... bxc5 {[%clk 0:01:22.8]} 19. Nf4 {[%clk
0:02:09.8]} 19... c4 {[%clk 0:01:16.1]} 20. Qc2 {[%clk 0:02:09.4]} 20... Bd7
{[%clk 0:01:12.9]} 21. a4 {[%clk 0:02:09]} 21... Rab8 {[%clk 0:01:08.7]} 22. Nd4
{[%clk 0:02:07.1]} 22... Rb4 {[%clk 0:01:02.6]} 23. Nf5 {[%clk 0:01:27.3]} 23...
Bd8 {[%clk 0:01:02.8]} 24. Ne2 {[%clk 0:01:14.2]} 24... Ne4 {[%clk 0:00:51.3]}
25. Bxd8 {[%clk 0:01:04.5]} 25... Qxd8 {[%clk 0:00:52.2]} 26. Nfd4 {[%clk
0:00:59.5]} 26... Rcb8 {[%clk 0:00:52.5]} 27. Ra2 {[%clk 0:00:54.3]} 27... Qa5
{[%clk 0:00:49.9]} 28. d3 {[%clk 0:00:46]} 28... Nc5 {[%clk 0:00:43.9]} 29. dxc4
{[%clk 0:00:45.2]} 29... Rxc4 {[%clk 0:00:44.8]} 30. Qd1 {[%clk 0:00:44.9]}
30... Rxc1 {[%clk 0:00:26]} 31. Qxc1 {[%clk 0:00:42.2]} 31... Nxa4 {[%clk
0:00:24.8]} 32. Nc6 {[%clk 0:00:34.6]} 32... Bxc6 {[%clk 0:00:24.9]} 33. Qxc6
{[%clk 0:00:35.5]} 33... Qe1+ {[%clk 0:00:24.8]} 34. Kh2 {[%clk 0:00:35.2]}
34... Nb6 {[%clk 0:00:13.9]} 35. Nf4 {[%clk 0:00:34.3]} 35... Rf8 {[%clk
0:00:05.1]} 36. Qc7 {[%clk 0:00:24.8]} 36... Nc4 {[%clk 0:00:03.2]} 37. Qxa7
{[%clk 0:00:15.5]} 37... Nd2 {[%clk 0:00:03.4]} 38. Qa5 {[%clk 0:00:13.9]} 38...
Nf1+ {[%clk 0:00:03.7]} 39. Kg1 {[%clk 0:00:14.5]} 39... Nd2+ {[%clk 0:00:03.8]}
40. Kh2 {[%clk 0:00:12.4]} 40... Nf1+ {[%clk 0:00:04.1]} 41. Kh1 {[%clk
0:00:11]} 41... Nd2+ {[%clk 0:00:03]} 42. Kh2 {[%clk 0:00:11.3]} 1/2-1/2

[Event "Late-Titled-Tuesday-Blitz-April-30-2024"]
[Site "Chess.com"]
[Date "2024.04.30"]
[Round "11"]
[White "Yerkinio"]
[Black "Byniolus"]
[Result "1-0"]
[WhiteElo "2681"]
[BlackElo "2825"]
[TimeControl "180+1"]
[EndTime "16:04:50 PDT"]
[Termination "Yerkinio won by checkmate"]

1. e4 {[%clk 0:02:55.8]} 1... d6 {[%clk 0:03:00.1]} 2. d4 {[%clk 0:02:54.7]}
2... Nf6 {[%clk 0:03:01]} 3. Nc3 {[%clk 0:02:54.5]} 3... c6 {[%clk 0:03:01.6]}
4. Be3 {[%clk 0:02:53.1]} 4... Qb6 {[%clk 0:03:01.7]} 5. a3 {[%clk 0:02:46]}
5... Ng4 {[%clk 0:03:00.9]} 6. Bg5 {[%clk 0:02:06.3]} 6... e5 {[%clk 0:02:56.7]}
7. Nf3 {[%clk 0:02:01]} 7... Nd7 {[%clk 0:02:56.1]} 8. h3 {[%clk 0:01:54.4]}
8... Ngf6 {[%clk 0:02:56.4]} 9. Bc4 {[%clk 0:01:47.7]} 9... Be7 {[%clk 0:02:56]}
10. O-O {[%clk 0:01:46.5]} 10... O-O {[%clk 0:02:56]} 11. dxe5 {[%clk
0:01:38.9]} 11... dxe5 {[%clk 0:02:51.2]} 12. Nh4 {[%clk 0:01:31]} 12... Nc5
{[%clk 0:02:38.5]} 13. Qf3 {[%clk 0:01:24.7]} 13... Be6 {[%clk 0:02:28.5]} 14.
Bxe6 {[%clk 0:01:16]} 14... fxe6 {[%clk 0:02:27.1]} 15. b4 {[%clk 0:01:09.8]}
15... Ncd7 {[%clk 0:01:36.7]} 16. Qe2 {[%clk 0:01:09.2]} 16... a5 {[%clk
0:01:17]} 17. Qc4 {[%clk 0:01:07.8]} 17... Rf7 {[%clk 0:01:03.8]} 18. Qxe6
{[%clk 0:01:03.5]} 18... axb4 {[%clk 0:00:56.2]} 19. axb4 {[%clk 0:01:04.4]}
19... Re8 {[%clk 0:00:55.9]} 20. Rab1 {[%clk 0:00:37.9]} 20... Bf8 {[%clk
0:00:38.4]} 21. Qc4 {[%clk 0:00:37.4]} 21... Qd4 {[%clk 0:00:35.2]} 22. Qd3
{[%clk 0:00:31.6]} 22... g6 {[%clk 0:00:32.2]} 23. Nf3 {[%clk 0:00:28.7]} 23...
Qb6 {[%clk 0:00:23.2]} 24. Qc4 {[%clk 0:00:26.3]} 24... Kg7 {[%clk 0:00:19.6]}
25. Be3 {[%clk 0:00:22.5]} 25... Qc7 {[%clk 0:00:12.1]} 26. b5 {[%clk
0:00:19.5]} 26... Nh5 {[%clk 0:00:10.6]} 27. bxc6 {[%clk 0:00:17.2]} 27... bxc6
{[%clk 0:00:11.5]} 28. Ng5 {[%clk 0:00:13.4]} 28... Rfe7 {[%clk 0:00:09.7]} 29.
Nd5 {[%clk 0:00:13.2]} 29... Qd6 {[%clk 0:00:08.7]} 30. Nxe7 {[%clk 0:00:13.1]}
30... Rxe7 {[%clk 0:00:08.8]} 31. Rfd1 {[%clk 0:00:10.3]} 31... Qf6 {[%clk
0:00:09.1]} 32. Rb7 {[%clk 0:00:07.8]} 32... h6 {[%clk 0:00:02.6]} 33. Rbxd7
{[%clk 0:00:05.5]} 33... hxg5 {[%clk 0:00:03.5]} 34. Rxe7+ {[%clk 0:00:04.7]}
34... Bxe7 {[%clk 0:00:04.4]} 35. Rd7 {[%clk 0:00:03.9]} 35... Kh6 {[%clk
0:00:02.8]} 36. Qg8 {[%clk 0:00:02]} 36... Nf4 {[%clk 0:00:02.1]} 37. Rxe7
{[%clk 0:00:02.2]} 37... Qxe7 {[%clk 0:00:01.7]} 38. Qh8+ {[%clk 0:00:02.3]}
38... Qh7 {[%clk 0:00:02.2]} 39. Qxe5 {[%clk 0:00:02.7]} 39... Nh5 {[%clk
0:00:02]} 40. Bxg5# {[%clk 0:00:01.9]} 1-0

[Event "Late-Titled-Tuesday-Blitz-April-30-2024"]
[Site "Chess.com"]
[Date "2024.04.30"]
[Round "11"]
[White "jaramsdal"]
[Black "brother-bear"]
[Result "1-0"]
[WhiteElo "2393"]
[BlackElo "2091"]
[TimeControl "180+1"]
[EndTime "16:05:04 PDT"]
[Termination "jaramsdal won on time"]

1. d4 {[%clk 0:03:00.9]} 1... g6 {[%clk 0:02:58.9]} 2. e3 {[%clk 0:03:00.6]}
2... Bg7 {[%clk 0:02:58.8]} 3. h4 {[%clk 0:02:58.8]} 3... h5 {[%clk 0:02:51.8]}
4. Nf3 {[%clk 0:02:58.7]} 4... Nf6 {[%clk 0:02:41.6]} 5. Ng5 {[%clk 0:02:58.7]}
5... c5 {[%clk 0:02:36.9]} 6. c3 {[%clk 0:02:53.8]} 6... Qc7 {[%clk 0:02:24.4]}
7. Bd3 {[%clk 0:02:52.5]} 7... d5 {[%clk 0:02:18.6]} 8. Nd2 {[%clk 0:02:47.5]}
8... b6 {[%clk 0:02:08.6]} 9. O-O {[%clk 0:02:41]} 9... O-O {[%clk 0:02:06.4]}
10. a4 {[%clk 0:02:38.8]} 10... Nbd7 {[%clk 0:01:58.6]} 11. Ndf3 {[%clk
0:02:37]} 11... e5 {[%clk 0:01:57.6]} 12. dxe5 {[%clk 0:02:36.1]} 12... Nxe5
{[%clk 0:01:57.7]} 13. Nxe5 {[%clk 0:02:36.4]} 13... Qxe5 {[%clk 0:01:58]} 14.
a5 {[%clk 0:02:31]} 14... Bf5 {[%clk 0:01:50.4]} 15. f4 {[%clk 0:02:16.1]} 15...
Qe7 {[%clk 0:01:40]} 16. Bxf5 {[%clk 0:02:15.9]} 16... gxf5 {[%clk 0:01:40.3]}
17. Rf3 {[%clk 0:02:04.5]} 17... b5 {[%clk 0:01:34.5]} 18. Rg3 {[%clk
0:01:59.5]} 18... Rad8 {[%clk 0:01:31.9]} 19. a6 {[%clk 0:01:44.9]} 19... Ng4
{[%clk 0:01:26.8]} 20. Qc2 {[%clk 0:01:30.5]} 20... f6 {[%clk 0:01:14.8]} 21.
Nh3 {[%clk 0:01:19.9]} 21... Qe4 {[%clk 0:01:14.3]} 22. Qe2 {[%clk 0:00:54.4]}
22... d4 {[%clk 0:00:56.7]} 23. cxd4 {[%clk 0:00:51]} 23... cxd4 {[%clk
0:00:56.4]} 24. Nf2 {[%clk 0:00:51.4]} 24... d3 {[%clk 0:00:45.2]} 25. Qd2
{[%clk 0:00:19.2]} 25... Qc4 {[%clk 0:00:45.1]} 26. Nxg4 {[%clk 0:00:18.2]}
26... fxg4 {[%clk 0:00:39.5]} 27. f5 {[%clk 0:00:19.1]} 27... Qe4 {[%clk
0:00:28.5]} 28. b3 {[%clk 0:00:10.5]} 28... Qxf5 {[%clk 0:00:26.2]} 29. Bb2
{[%clk 0:00:11]} 29... Rfe8 {[%clk 0:00:23.5]} 30. Rf1 {[%clk 0:00:10.7]} 30...
Qe6 {[%clk 0:00:19]} 31. b4 {[%clk 0:00:09.7]} 31... Re7 {[%clk 0:00:16.5]} 32.
Bd4 {[%clk 0:00:09.3]} 32... Qxa6 {[%clk 0:00:13.1]} 33. Qxd3 {[%clk 0:00:07.5]}
33... Qe6 {[%clk 0:00:10.4]} 34. Qg6 {[%clk 0:00:06.8]} 34... Qe4 {[%clk
0:00:09]} 35. Qxh5 {[%clk 0:00:05.2]} 35... Rxd4 {[%clk 0:00:07.5]} 36. exd4
{[%clk 0:00:04.1]} 36... Qxd4+ {[%clk 0:00:07.8]} 37. Kh1 {[%clk 0:00:04.1]}
37... Qc4 {[%clk 0:00:03.8]} 38. Qxg4 {[%clk 0:00:04.1]} 38... Qxf1+ {[%clk
0:00:03]} 39. Kh2 {[%clk 0:00:04]} 39... Qc4 {[%clk 0:00:01.2]} 40. h5 {[%clk
0:00:04.2]} 40... Qxg4 {[%clk 0:00:00.7]} 41. Rxg4 {[%clk 0:00:05.1]} 41... Kh7
{[%clk 0:00:01.1]} 42. Kg3 {[%clk 0:00:05.5]} 42... Rc7 {[%clk 0:00:01.2]} 43.
Re4 {[%clk 0:00:04.4]} 43... Rc4 {[%clk 0:00:01.1]} 44. Kf3 {[%clk 0:00:03.2]}
44... Rxb4 {[%clk 0:00:01.3]} 45. Rxb4 {[%clk 0:00:02.8]} 45... a6 {[%clk
0:00:00.3]} 46. Rb3 {[%clk 0:00:03.3]} 46... Bf8 {[%clk 0:00:00.2]} 47. Ke4
{[%clk 0:00:03.9]} 1-0